[Event "Swedish U16 Team Championship 2019 - Final"]
[Site "Molnlycke Kulturhus, Biblioteksgatan 2, Molnlycke, Sweden"]
[Date "2019.08.18"]
[Round "5.1"]
[White "Sorensen, Hampus"]
[Black "Rasmusson, Max"]
[Result "1-0"]
[TimeControl "90 minutes + 30 seconds per move from move one."]
[WhiteTitle "FM"]
[WhiteElo "2356"]
[BlackElo "1624"]

1. d4 {[%clk 01:30:53]} {[%emt 00:00:06]} Nf6 {[%clk 01:30:35]} {[%emt
00:00:26]} 2. Bg5 {[%clk 01:29:12]} {[%emt 00:02:11]} e6 {[%clk 01:27:59]}
{[%emt 00:03:13]} 3. e4 {[%clk 01:29:19]} {[%emt 00:00:16]} Be7 {[%clk
01:28:01]} {[%emt 00:00:29]} 4. e5 {[%clk 01:27:55]} {[%emt 00:01:53]} Nd5
{[%clk 01:28:06]} {[%emt 00:00:24]} 5. Bxe7 {[%clk 01:28:13]} {[%emt 00:00:13]}
Nxe7 {[%clk 01:28:19]} {[%emt 00:00:17]} 6. Nf3 {[%clk 01:19:29]} {[%emt
00:09:14]} d6 {[%clk 01:23:56]} {[%emt 00:04:54]} 7. Bd3 {[%clk 01:19:12]}
{[%emt 00:00:46]} Nd7 {[%clk 01:22:29]} {[%emt 00:01:56]} 8. Qe2 {[%clk
01:12:22]} {[%emt 00:07:21]} Ng6 {[%clk 01:21:57]} {[%emt 00:01:02]} 9. Qe3
{[%clk 01:11:41]} {[%emt 00:01:11]} dxe5 {[%clk 01:19:12]} {[%emt 00:03:15]} 10.
dxe5 {[%clk 01:11:59]} {[%emt 00:00:12]} c6 {[%clk 01:18:05]} {[%emt 00:01:37]}
11. Bxg6 {[%clk 01:08:08]} {[%emt 00:04:21]} hxg6 {[%clk 01:18:27]} {[%emt
00:00:08]} 12. Nbd2 {[%clk 01:07:37]} {[%emt 00:01:01]} Qb6 {[%clk 01:12:08]}
{[%emt 00:06:49]} 13. Qc3 {[%clk 00:57:58]} {[%emt 00:10:09]} Qc5 {[%clk
01:03:15]} {[%emt 00:09:22]} 14. Nc4 {[%clk 00:58:03]} {[%emt 00:00:25]} O-O
{[%clk 01:00:20]} {[%emt 00:03:25]} 15. b4 {[%clk 00:57:13]} {[%emt 00:01:20]}
Qe7 {[%clk 00:59:29]} {[%emt 00:01:21]} 16. Nd6 {[%clk 00:54:17]} {[%emt
00:03:26]} Nb6 {[%clk 00:59:18]} {[%emt 00:00:41]} 17. h4 {[%clk 00:49:17]}
{[%emt 00:05:30]} Nd5 {[%clk 00:57:14]} {[%emt 00:02:34]} 18. Qd2 {[%clk
00:49:15]} {[%emt 00:00:32]} Qc7 {[%clk 00:53:22]} {[%emt 00:04:22]} 19. h5
{[%clk 00:47:53]} {[%emt 00:01:51]} gxh5 {[%clk 00:53:33]} {[%emt 00:00:20]} 20.
Rxh5 {[%clk 00:47:23]} {[%emt 00:01:00]} f6 {[%clk 00:45:42]} {[%emt 00:08:21]}
21. O-O-O {[%clk 00:43:27]} {[%emt 00:04:26]} fxe5 {[%clk 00:43:42]} {[%emt
00:02:30]} 22. Rdh1 {[%clk 00:42:25]} {[%emt 00:01:32]} Qxd6 {[%clk 00:43:24]}
{[%emt 00:00:49]} 23. Ng5 {[%clk 00:42:48]} {[%emt 00:00:06]} 1-0

[Event "Swedish U16 Team Championship 2019 - Final"]
[Site "Molnlycke Kulturhus, Biblioteksgatan 2, Molnlycke, Sweden"]
[Date "2019.08.18"]
[Round "5.2"]
[White "Holmquist, Oliver 2006"]
[Black "Svetic, Matija"]
[Result "1/2-1/2"]
[TimeControl "90 minutes + 30 seconds per move from move one."]
[WhiteElo "1137"]
[BlackElo "1775"]

1. e4 {[%clk 01:30:58]} {[%emt 00:00:01]} c5 {[%clk 01:30:56]} {[%emt
00:00:04]} 2. Bc4 {[%clk 01:31:18]} {[%emt 00:00:10]} e6 {[%clk 01:31:20]}
{[%emt 00:00:07]} 3. d3 {[%clk 01:30:57]} {[%emt 00:00:51]} Qc7 {[%clk
01:30:47]} {[%emt 00:01:03]} 4. Nf3 {[%clk 01:30:02]} {[%emt 00:01:25]} Nc6
{[%clk 01:30:12]} {[%emt 00:01:05]} 5. Nc3 {[%clk 01:27:34]} {[%emt 00:03:09]}
a6 {[%clk 01:30:23]} {[%emt 00:00:06]} 6. a4 {[%clk 01:22:48]} {[%emt
00:05:16]} Nf6 {[%clk 01:30:14]} {[%emt 00:00:40]} 7. O-O {[%clk 01:17:22]}
{[%emt 00:05:56]} Be7 {[%clk 01:27:53]} {[%emt 00:02:50]} 8. Re1 {[%clk
01:09:41]} {[%emt 00:08:11]} d6 {[%clk 01:27:33]} {[%emt 00:00:51]} 9. h3
{[%clk 01:07:03]} {[%emt 00:03:09]} Ne5 {[%clk 01:26:18]} {[%emt 00:01:44]} 10.
Nxe5 {[%clk 01:02:39]} {[%emt 00:04:54]} dxe5 {[%clk 01:25:44]} {[%emt
00:01:05]} 11. Bg5 {[%clk 01:00:48]} {[%emt 00:02:21]} b6 {[%clk 01:22:40]}
{[%emt 00:03:33]} 12. Ne2 {[%clk 00:55:51]} {[%emt 00:05:27]} Bb7 {[%clk
01:20:18]} {[%emt 00:02:52]} 13. Ng3 {[%clk 00:54:20]} {[%emt 00:02:00]} Ng8
{[%clk 01:12:18]} {[%emt 00:08:30]} 14. Qg4 {[%clk 00:44:59]} {[%emt 00:09:52]}
g6 {[%clk 01:08:56]} {[%emt 00:03:53]} 15. Bxe7 {[%clk 00:42:27]} {[%emt
00:03:02]} Nxe7 {[%clk 01:03:28]} {[%emt 00:05:58]} 16. Qg5 {[%clk 00:39:30]}
{[%emt 00:03:27]} O-O-O {[%clk 01:02:38]} {[%emt 00:01:19]} 17. Qf6 {[%clk
00:38:36]} {[%emt 00:01:14]} Nc6 {[%clk 01:02:18]} {[%emt 00:01:01]} 18. c3
{[%clk 00:37:13]} {[%emt 00:01:53]} Qe7 {[%clk 00:53:55]} {[%emt 00:08:54]} 19.
Qxe7 {[%clk 00:33:29]} {[%emt 00:04:14]} Nxe7 {[%clk 00:54:17]} {[%emt
00:00:08]} 20. b4 {[%clk 00:33:40]} {[%emt 00:00:19]} cxb4 {[%clk 00:51:26]}
{[%emt 00:03:21]} 21. cxb4 {[%clk 00:34:02]} {[%emt 00:00:09]} Kb8 {[%clk
00:48:26]} {[%emt 00:03:30]} 22. b5 {[%clk 00:29:57]} {[%emt 00:04:35]} a5
{[%clk 00:44:49]} {[%emt 00:04:07]} 23. Rad1 {[%clk 00:29:24]} {[%emt
00:01:03]} Rd7 {[%clk 00:43:42]} {[%emt 00:01:36]} 24. Re2 {[%clk 00:27:12]}
{[%emt 00:02:42]} Rhd8 {[%clk 00:43:16]} {[%emt 00:00:57]} 25. Red2 {[%clk
00:26:23]} {[%emt 00:01:19]} Nc8 {[%clk 00:42:44]} {[%emt 00:01:01]} 26. f3
{[%clk 00:25:39]} {[%emt 00:01:15]} Nd6 {[%clk 00:41:46]} {[%emt 00:01:28]} 27.
Nf1 {[%clk 00:22:53]} {[%emt 00:03:17]} Bc8 {[%clk 00:31:20]} {[%emt 00:10:56]}
28. g4 {[%clk 00:21:09]} {[%emt 00:02:13]} Nb7 {[%clk 00:28:37]} {[%emt
00:03:13]} 29. Ra1 {[%clk 00:16:01]} {[%emt 00:05:38]} Rd4 {[%clk 00:21:25]}
{[%emt 00:07:42]} 30. Raa2 {[%clk 00:16:04]} {[%emt 00:00:27]} Nd6 {[%clk
00:18:46]} {[%emt 00:03:09]} 31. Kg2 {[%clk 00:15:12]} {[%emt 00:01:22]} Rd7
{[%clk 00:16:55]} {[%emt 00:02:22]} 32. Kg3 {[%clk 00:14:56]} {[%emt 00:00:46]}
Nxc4 {[%clk 00:14:05]} {[%emt 00:03:20]} 33. dxc4 {[%clk 00:15:17]} {[%emt
00:00:09]} Rxc4 {[%clk 00:14:03]} {[%emt 00:00:31]} 34. Rxd7 {[%clk 00:15:05]}
{[%emt 00:00:42]} Bxd7 {[%clk 00:14:28]} {[%emt 00:00:06]} 35. Kh4 {[%clk
00:15:11]} {[%emt 00:00:24]} h6 {[%clk 00:14:03]} {[%emt 00:00:54]} 36. g5
{[%emt 00:02:01]} h5 {[%clk 00:12:44]} {[%emt 00:01:49]} 1/2-1/2

[Event "Swedish U16 Team Championship 2019 - Final"]
[Site "Molnlycke Kulturhus, Biblioteksgatan 2, Molnlycke, Sweden"]
[Date "2019.08.18"]
[Round "5.3"]
[White "Wikman, Viktor 2006"]
[Black "Nordin, Marcus 2007"]
[Result "1-0"]
[TimeControl "90 minutes + 30 seconds per move from move one."]
[WhiteElo "1662"]
[BlackElo "1162"]

1. d4 {[%clk 01:30:57]} {[%emt 00:00:02]} d5 {[%clk 01:30:15]} {[%emt
00:00:46]} 2. c4 {[%clk 01:31:05]} {[%emt 00:00:22]} c6 {[%clk 01:30:20]}
{[%emt 00:00:25]} 3. Nf3 {[%clk 01:31:30]} {[%emt 00:00:05]} Bf5 {[%clk
01:30:19]} {[%emt 00:00:31]} 4. cxd5 {[%clk 01:30:32]} {[%emt 00:01:28]} cxd5
{[%clk 01:30:38]} {[%emt 00:00:10]} 5. Qb3 {[%clk 01:30:36]} {[%emt 00:00:26]}
b6 {[%clk 01:29:36]} {[%emt 00:01:38]} 6. Nc3 {[%clk 01:30:56]} {[%emt
00:00:05]} Nf6 {[%clk 01:29:54]} {[%emt 00:00:12]} 7. Bg5 {[%clk 01:28:25]}
{[%emt 00:03:01]} Be6 {[%clk 01:29:23]} {[%emt 00:01:01]} 8. e3 {[%clk
01:28:09]} {[%emt 00:00:47]} g6 {[%clk 01:28:35]} {[%emt 00:01:17]} 9. Bb5+
{[%clk 01:28:06]} {[%emt 00:00:33]} Nbd7 {[%clk 01:28:40]} {[%emt 00:00:24]} 10.
Ne5 {[%clk 01:27:21]} {[%emt 00:01:15]} Bg7 {[%clk 01:26:50]} {[%emt 00:02:21]}
11. Qa3 {[%clk 01:22:27]} {[%emt 00:05:24]} Ne4 {[%clk 01:25:53]} {[%emt
00:01:26]} 12. Nc6 {[%clk 01:22:09]} {[%emt 00:00:48]} Nxg5 {[%clk 01:23:02]}
{[%emt 00:03:20]} 13. Nxd8 {[%clk 01:22:02]} {[%emt 00:00:38]} Rxd8 {[%clk
01:23:25]} {[%emt 00:00:08]} 14. h4 {[%clk 01:21:29]} {[%emt 00:01:03]} Ne4
{[%clk 01:23:40]} {[%emt 00:00:15]} 15. Nxe4 {[%clk 01:21:38]} {[%emt
00:00:21]} dxe4 {[%clk 01:24:03]} {[%emt 00:00:07]} 16. h5 {[%clk 01:21:58]}
{[%emt 00:00:10]} O-O {[%clk 01:23:39]} {[%emt 00:00:53]} 17. hxg6 {[%clk
01:19:17]} {[%emt 00:03:11]} fxg6 {[%clk 01:23:56]} {[%emt 00:00:13]} 18. Rc1
{[%clk 01:18:38]} {[%emt 00:01:09]} Nf6 {[%clk 01:23:34]} {[%emt 00:00:52]} 19.
Qxe7 {[%clk 01:16:56]} {[%emt 00:02:12]} Bxa2 {[%clk 01:23:32]} {[%emt
00:00:32]} 20. Rc7 {[%clk 01:16:16]} {[%emt 00:01:10]} Bf7 {[%clk 01:23:47]}
{[%emt 00:00:16]} 21. Bc4 {[%clk 01:16:06]} {[%emt 00:00:41]} Rd7 {[%clk
01:23:47]} {[%emt 00:00:30]} 22. Rxd7 {[%clk 01:15:31]} {[%emt 00:01:05]} Nxd7
{[%clk 01:24:07]} {[%emt 00:00:09]} 23. Bxf7+ {[%clk 01:15:50]} {[%emt
00:00:11]} Rxf7 {[%clk 01:24:18]} {[%emt 00:00:20]} 24. Qxe4 {[%clk 01:14:52]}
{[%emt 00:01:28]} Nf6 {[%clk 01:24:30]} {[%emt 00:00:18]} 25. Qa8+ {[%clk
01:14:07]} {[%emt 00:01:12]} Bf8 {[%clk 01:24:22]} {[%emt 00:00:39]} 26. O-O
{[%clk 01:13:48]} {[%emt 00:00:49]} a5 {[%clk 01:23:08]} {[%emt 00:01:44]} 27.
Qc6 {[%clk 01:13:39]} {[%emt 00:00:39]} Nd7 {[%clk 01:23:13]} {[%emt 00:00:26]}
28. Rc1 {[%clk 01:13:19]} {[%emt 00:00:50]} Bb4 {[%clk 01:20:54]} {[%emt
00:02:48]} 29. Qe6 {[%clk 01:12:54]} {[%emt 00:00:54]} Kf8 {[%clk 01:18:39]}
{[%emt 00:02:48]} 30. Rc7 {[%clk 01:12:39]} {[%emt 00:00:44]} Re7 {[%clk
01:18:16]} {[%emt 00:00:53]} 31. Rc8+ {[%clk 01:12:22]} {[%emt 00:00:48]} Kg7
{[%clk 01:18:24]} {[%emt 00:00:20]} 32. Rg8+ {[%clk 01:12:29]} {[%emt
00:00:23]} Kh6 {[%clk 01:18:27]} {[%emt 00:00:27]} 33. Qg4 {[%clk 01:11:14]}
{[%emt 00:01:46]} Nf6 {[%clk 01:18:23]} {[%emt 00:00:35]} 34. Qf4+ {[%clk
01:11:32]} {[%emt 00:00:12]} Kh5 {[%clk 01:17:46]} {[%emt 00:01:07]} 35. Qh2+
{[%clk 01:09:16]} {[%emt 00:02:46]} Kg5 {[%clk 01:17:21]} {[%emt 00:00:54]} 36.
Qf4+ {[%clk 01:08:05]} {[%emt 00:01:42]} Kh5 {[%clk 01:17:24]} {[%emt
00:00:27]} 37. Qxf6 {[%clk 01:08:28]} {[%emt 00:00:07]} Rc7 {[%clk 01:16:21]}
{[%emt 00:01:33]} 38. g4+ {[%clk 01:07:19]} {[%emt 00:01:39]} Kxg4 {[%clk
01:16:34]} {[%emt 00:00:16]} 39. f3+ {[%clk 01:05:06]} {[%emt 00:02:43]} Kh3
{[%clk 01:15:41]} {[%emt 00:01:21]} 40. Qe6+ {[%clk 01:05:22]} {[%emt
00:00:16]} Kg3 {[%clk 01:14:41]} {[%emt 00:01:31]} 41. Qg4# {[%clk 01:05:46]}
{[%emt 00:00:05]} 1-0

[Event "Swedish U16 Team Championship 2019 - Final"]
[Site "Molnlycke Kulturhus, Biblioteksgatan 2, Molnlycke, Sweden"]
[Date "2019.08.18"]
[Round "5.4"]
[White "Johansson, Sigge"]
[Black "Backlund, Elias"]
[Result "0-1"]
[TimeControl "90 minutes + 30 seconds per move from move one."]
[WhiteElo "1123"]
[BlackElo "1603"]

1. e4 {[%clk 01:30:57]} {[%emt 00:00:01]} d5 {[%clk 01:30:55]} {[%emt
00:00:05]} 2. e5 {[%clk 01:31:18]} {[%emt 00:00:09]} Nc6 {[%clk 01:30:57]}
{[%emt 00:00:28]} 3. d4 {[%clk 01:31:37]} {[%emt 00:00:12]} Bf5 {[%clk
01:31:01]} {[%emt 00:00:26]} 4. Nf3 {[%clk 01:31:26]} {[%emt 00:00:41]} e6
{[%clk 01:30:59]} {[%emt 00:00:32]} 5. Nc3 {[%clk 01:31:10]} {[%emt 00:00:46]}
Nb4 {[%clk 01:30:28]} {[%emt 00:01:01]} 6. Bb5+ {[%clk 01:29:41]} {[%emt
00:01:59]} c6 {[%clk 01:29:56]} {[%emt 00:01:36]} 7. Ba4 {[%clk 01:29:48]} Ne7
{[%clk 01:27:02]} {[%emt 00:03:15]} 8. a3 {[%clk 01:28:30]} {[%emt 00:01:48]}
Na6 {[%clk 01:27:06]} {[%emt 00:00:25]} 9. Bg5 {[%clk 01:27:59]} {[%emt
00:01:02]} h6 {[%clk 01:27:17]} {[%emt 00:00:20]} 10. Bh4 {[%clk 01:28:20]}
{[%emt 00:00:09]} g5 {[%clk 01:26:39]} {[%emt 00:01:08]} 11. Bg3 {[%clk
01:27:50]} {[%emt 00:01:00]} Ng6 {[%clk 01:25:23]} {[%emt 00:01:46]} 12. Qe2
{[%clk 01:24:44]} {[%emt 00:03:36]} Qb6 {[%emt 00:10:03]} 13. O-O-O {[%clk
01:01:10]} {[%emt 00:18:24]} O-O-O {[%clk 01:20:13]} {[%emt 00:01:47]} 14. Nd2
{[%clk 00:58:24]} {[%emt 00:03:16]} Qxd4 {[%clk 01:16:42]} {[%emt 00:04:02]} 15.
Bxc6 {[%clk 00:58:26]} {[%emt 00:00:27]} Qc5 {[%clk 01:15:23]} {[%emt
00:01:48]} 16. Bb5 {[%clk 00:57:05]} {[%emt 00:01:51]} d4 {[%clk 01:14:23]}
{[%emt 00:01:31]} 17. Bxa6 {[%clk 00:51:52]} {[%emt 00:05:42]} dxc3 {[%clk
01:13:47]} {[%emt 00:01:07]} 18. Nb3 {[%clk 00:52:09]} {[%emt 00:00:14]} cxb2+
{[%clk 01:13:51]} {[%emt 00:00:26]} 19. Kxb2 {[%clk 00:52:20]} {[%emt
00:00:17]} Qxa3+ {[%clk 01:13:43]} {[%emt 00:00:38]} 20. Kb1 {[%clk 00:52:38]}
{[%emt 00:00:12]} Qxb3+ {[%clk 01:13:50]} {[%emt 00:00:23]} 21. Kc1 {[%clk
00:52:13]} {[%emt 00:00:56]} Ba3# {[%clk 01:14:09]} {[%emt 00:00:10]} 0-1

[Event "Swedish U16 Team Championship 2019 - Final"]
[Site "Molnlycke Kulturhus, Biblioteksgatan 2, Molnlycke, Sweden"]
[Date "2019.08.18"]
[Round "5.7"]
[White "Kucuksari, Kaan"]
[Black "Lindholm, Gustav"]
[Result "1-0"]
[TimeControl "90 minutes + 30 seconds per move from move one."]
[WhiteTitle "FM"]
[WhiteElo "2286"]
[BlackElo "2006"]

1. d4 {[%clk 01:30:57]} {[%emt 00:00:02]} d5 {[%clk 01:30:54]} {[%emt
00:00:06]} 2. Nf3 {[%clk 01:31:23]} {[%emt 00:00:05]} Nf6 {[%clk 01:31:16]}
{[%emt 00:00:07]} 3. c4 {[%clk 01:31:43]} {[%emt 00:00:10]} c6 {[%clk
01:31:38]} {[%emt 00:00:08]} 4. Qc2 {[%clk 01:31:50]} {[%emt 00:00:24]} dxc4
{[%clk 01:31:05]} {[%emt 00:01:03]} 5. e4 {[%clk 01:32:05]} {[%emt 00:00:14]}
Bg4 {[%clk 01:28:36]} {[%emt 00:02:59]} 6. Bxc4 {[%clk 01:28:35]} {[%emt
00:04:01]} e6 {[%clk 01:26:45]} {[%emt 00:02:21]} 7. Be3 {[%clk 01:24:23]}
{[%emt 00:04:43]} Bb4+ {[%clk 01:25:09]} {[%emt 00:02:06]} 8. Nbd2 {[%clk
01:21:17]} {[%emt 00:03:35]} Nbd7 {[%clk 01:20:33]} {[%emt 00:05:06]} 9. O-O
{[%clk 01:20:03]} {[%emt 00:01:45]} O-O {[%clk 01:18:39]} {[%emt 00:02:24]} 10.
Bd3 {[%clk 01:17:26]} {[%emt 00:03:07]} h6 {[%clk 01:12:18]} {[%emt 00:06:52]}
11. h3 {[%clk 01:13:55]} {[%emt 00:04:01]} Bxf3 {[%clk 01:10:01]} {[%emt
00:02:47]} 12. Nxf3 {[%clk 01:14:18]} {[%emt 00:00:07]} Rc8 {[%clk 01:07:33]}
{[%emt 00:02:57]} 13. a3 {[%clk 01:03:55]} {[%emt 00:10:54]} Be7 {[%clk
01:04:23]} {[%emt 00:03:39]} 14. Rfd1 {[%clk 01:03:44]} {[%emt 00:00:41]} Qc7
{[%clk 00:59:38]} {[%emt 00:05:15]} 15. Rac1 {[%clk 01:02:49]} {[%emt
00:01:25]} Rfd8 {[%clk 00:51:16]} {[%emt 00:08:52]} 16. Qe2 {[%clk 00:59:26]}
{[%emt 00:03:53]} Qb8 {[%clk 00:39:03]} {[%emt 00:12:43]} 17. b4 {[%clk
00:57:00]} {[%emt 00:02:57]} a6 {[%clk 00:25:47]} {[%emt 00:13:46]} 18. Nd2
{[%clk 00:55:10]} {[%emt 00:02:20]} e5 {[%clk 00:22:49]} {[%emt 00:03:28]} 19.
Nf3 {[%clk 00:46:52]} {[%emt 00:08:49]} Bd6 {[%clk 00:17:06]} {[%emt 00:06:13]}
20. Qa2 {[%clk 00:42:04]} {[%emt 00:05:18]} Re8 {[%clk 00:15:13]} {[%emt
00:02:23]} 21. Bc4 {[%clk 00:41:50]} {[%emt 00:00:43]} Re7 {[%clk 00:15:08]}
{[%emt 00:00:35]} 22. Nh4 {[%clk 00:41:04]} {[%emt 00:01:17]} b5 {[%clk
00:09:28]} {[%emt 00:06:10]} 23. Bb3 {[%clk 00:40:50]} {[%emt 00:00:44]} Nf8
{[%clk 00:09:32]} {[%emt 00:00:26]} 24. Nf5 {[%clk 00:38:37]} {[%emt 00:02:43]}
Rb7 {[%clk 00:09:45]} {[%emt 00:00:17]} 25. d5 {[%clk 00:37:37]} {[%emt
00:01:30]} Nxe4 {[%clk 00:02:08]} {[%emt 00:08:08]} 26. dxc6 {[%clk 00:38:02]}
{[%emt 00:00:05]} Rbc7 {[%clk 00:01:20]} {[%emt 00:01:18]} 27. Nxd6 {[%clk
00:35:19]} {[%emt 00:03:13]} 1-0

[Event "Swedish U16 Team Championship 2019 - Final"]
[Site "Molnlycke Kulturhus, Biblioteksgatan 2, Molnlycke, Sweden"]
[Date "2019.08.18"]
[Round "5.8"]
[White "Rasti, Arvin"]
[Black "Bensryd, Hampus"]
[Result "1-0"]
[TimeControl "90 minutes + 30 seconds per move from move one."]
[WhiteElo "2116"]
[BlackElo "1907"]

1. d4 {[%clk 01:30:43]} {[%emt 00:00:16]} Nf6 {[%clk 01:29:59]} {[%emt
00:00:57]} 2. c4 {[%clk 01:30:27]} {[%emt 00:00:51]} e6 {[%clk 01:30:22]}
{[%emt 00:00:08]} 3. Nc3 {[%clk 01:30:52]} {[%emt 00:00:05]} Bb4 {[%clk
01:29:59]} {[%emt 00:00:53]} 4. Nf3 {[%clk 01:29:47]} {[%emt 00:01:35]} b6
{[%clk 01:29:20]} {[%emt 00:01:15]} 5. Bg5 {[%clk 01:29:29]} {[%emt 00:00:42]}
Bb7 {[%clk 01:28:09]} {[%emt 00:01:41]} 6. e3 {[%clk 01:29:22]} {[%emt
00:00:36]} O-O {[%clk 01:26:56]} {[%emt 00:01:44]} 7. Bd3 {[%clk 01:28:33]}
{[%emt 00:01:19]} d5 {[%clk 01:25:02]} {[%emt 00:02:23]} 8. cxd5 {[%clk
01:25:59]} {[%emt 00:03:04]} exd5 {[%clk 01:25:25]} {[%emt 00:00:08]} 9. O-O
{[%clk 01:25:57]} {[%emt 00:00:32]} Nbd7 {[%clk 01:20:26]} {[%emt 00:05:29]} 10.
Rc1 {[%clk 01:22:16]} {[%emt 00:04:11]} h6 {[%clk 01:17:53]} {[%emt 00:03:04]}
11. Bh4 {[%clk 01:21:21]} {[%emt 00:01:24]} Be7 {[%clk 01:15:58]} {[%emt
00:02:24]} 12. Qc2 {[%clk 01:16:48]} {[%emt 00:05:03]} c5 {[%clk 01:13:32]}
{[%emt 00:02:56]} 13. Qb1 {[%clk 01:10:37]} {[%emt 00:06:41]} Ne4 {[%clk
01:05:46]} {[%emt 00:08:17]} 14. Nxe4 {[%clk 00:58:59]} {[%emt 00:12:07]} Bxh4
{[%clk 01:05:55]} {[%emt 00:00:22]} 15. Nd6 {[%clk 00:58:15]} {[%emt 00:01:14]}
Bc6 {[%clk 01:02:03]} {[%emt 00:04:22]} 16. Nxh4 {[%clk 00:55:01]} {[%emt
00:03:44]} Qxh4 {[%clk 01:01:57]} {[%emt 00:00:35]} 17. b4 {[%clk 00:53:46]}
{[%emt 00:01:44]} Qf6 {[%clk 00:59:38]} {[%emt 00:02:49]} 18. bxc5 {[%clk
00:52:18]} {[%emt 00:01:59]} bxc5 {[%clk 00:59:52]} {[%emt 00:00:15]} 19. dxc5
{[%clk 00:50:15]} {[%emt 00:02:34]} Nxc5 {[%clk 00:57:57]} {[%emt 00:02:25]} 20.
Bh7+ {[%clk 00:48:26]} {[%emt 00:02:18]} Kh8 {[%clk 00:57:50]} {[%emt
00:00:37]} 21. Nxf7+ {[%clk 00:48:37]} {[%emt 00:00:20]} Rxf7 {[%clk 00:55:54]}
{[%emt 00:02:25]} 22. Rxc5 {[%clk 00:49:00]} {[%emt 00:00:07]} Bb7 {[%clk
00:51:04]} {[%emt 00:05:21]} 23. Bg6 {[%clk 00:46:30]} {[%emt 00:02:59]} Re7
{[%clk 00:49:40]} {[%emt 00:01:54]} 24. Rb5 {[%clk 00:43:11]} {[%emt 00:03:49]}
Rb8 {[%clk 00:45:19]} {[%emt 00:04:51]} 25. h3 {[%clk 00:32:10]} {[%emt
00:11:32]} Rc7 {[%clk 00:35:19]} {[%emt 00:10:28]} 26. Rb4 {[%clk 00:27:47]}
{[%emt 00:04:53]} Qc6 {[%clk 00:33:38]} {[%emt 00:02:12]} 27. Bh5 {[%clk
00:25:38]} {[%emt 00:02:39]} Rf8 {[%clk 00:29:40]} {[%emt 00:04:28]} 28. Rd4
{[%clk 00:24:16]} {[%emt 00:01:52]} Ba6 {[%clk 00:28:10]} {[%emt 00:02:00]} 29.
Rfd1 {[%clk 00:22:42]} {[%emt 00:02:05]} Bc4 {[%clk 00:23:16]} {[%emt
00:05:24]} 30. Bf3 {[%clk 00:20:11]} {[%emt 00:03:00]} Qf6 {[%clk 00:21:22]}
{[%emt 00:02:24]} 31. Rf4 {[%clk 00:19:48]} {[%emt 00:00:54]} Qe7 {[%clk
00:19:59]} {[%emt 00:01:53]} 32. Rxf8+ {[%clk 00:18:55]} {[%emt 00:01:22]} Qxf8
{[%clk 00:20:25]} {[%emt 00:00:04]} 33. Bxd5 {[%clk 00:18:28]} {[%emt
00:00:57]} Qc8 {[%clk 00:19:39]} {[%emt 00:01:15]} 34. Bxc4 {[%clk 00:17:38]}
{[%emt 00:01:21]} Rxc4 {[%clk 00:20:04]} {[%emt 00:00:05]} 35. Qd3 {[%clk
00:17:42]} {[%emt 00:00:25]} Rc1 {[%clk 00:17:25]} {[%emt 00:03:09]} 36. g4
{[%clk 00:13:20]} {[%emt 00:04:52]} Rxd1+ {[%clk 00:15:52]} {[%emt 00:02:03]}
37. Qxd1 {[%clk 00:13:44]} {[%emt 00:00:07]} Qc4 {[%clk 00:15:41]} {[%emt
00:00:42]} 38. a4 {[%clk 00:13:18]} {[%emt 00:00:54]} Qe4 {[%clk 00:15:28]}
{[%emt 00:00:44]} 39. Qd4 {[%clk 00:11:41]} {[%emt 00:02:07]} Qb1+ {[%clk
00:14:30]} {[%emt 00:01:29]} 40. Kg2 {[%clk 00:11:36]} {[%emt 00:00:35]} Qb7+
{[%clk 00:14:17]} {[%emt 00:00:43]} 41. e4 {[%clk 00:11:40]} {[%emt 00:00:26]}
Qc7 {[%clk 00:11:54]} {[%emt 00:02:53]} 42. Qd5 {[%clk 00:11:26]} {[%emt
00:00:43]} g6 {[%clk 00:11:34]} {[%emt 00:00:51]} 43. a5 {[%clk 00:11:13]}
{[%emt 00:00:42]} Kg7 {[%clk 00:11:30]} {[%emt 00:00:34]} 44. e5 {[%clk
00:10:48]} {[%emt 00:00:55]} Kf8 {[%clk 00:10:59]} {[%emt 00:01:02]} 45. Qd6+
{[%clk 00:08:03]} {[%emt 00:03:15]} Qxd6 {[%clk 00:11:22]} {[%emt 00:00:06]} 46.
exd6 {[%clk 00:08:30]} {[%emt 00:00:03]} Ke8 {[%clk 00:11:37]} {[%emt
00:00:15]} 47. f4 {[%clk 00:08:50]} {[%emt 00:00:10]} Kd7 {[%clk 00:12:02]}
{[%emt 00:00:05]} 48. Kf3 {[%clk 00:09:16]} {[%emt 00:00:03]} Kxd6 {[%clk
00:12:27]} {[%emt 00:00:06]} 49. Ke4 {[%clk 00:09:36]} {[%emt 00:00:11]} Ke6
{[%clk 00:12:23]} {[%emt 00:00:34]} 50. f5+ {[%clk 00:09:19]} {[%emt 00:00:47]}
gxf5+ {[%clk 00:12:49]} {[%emt 00:00:04]} 51. gxf5+ {[%clk 00:09:44]} {[%emt
00:00:06]} Kf6 {[%clk 00:13:14]} {[%emt 00:00:03]} 52. Kf4 {[%clk 00:10:07]}
{[%emt 00:00:08]} a6 {[%clk 00:13:29]} {[%emt 00:00:15]} 53. h4 {[%clk
00:10:24]} {[%emt 00:00:14]} h5 {[%clk 00:13:56]} {[%emt 00:00:03]} 54. Ke4
{[%clk 00:10:49]} {[%emt 00:00:04]} 1-0